Workbook

Sheet Cover
A3: Navigator
C5: =Client_Name -> SumProduct Pty Limited
C6: =Model_Name -> SP Debt to Repay Examples.xlsm
C14: Primary Developer: Liam Bastick
C16: General Cover Notes:
C17: This workbook provides some basic examples regarding scheduled debt payments.
C21: Any queries, please e-mail: | G21: liam.bastick@sumproduct.com
C22: Website: | G22: www.sumproduct.com

Sheet Navigator
A1: Navigator
A2: =Model_Name -> SP Debt to Repay Examples.xlsm
A3: Navigator
E4: Error Checks: | G4: =Overall_Error_Check -> 0
B7: 1 | C7: Table of Contents
F9: Cover
F10: Style Guide
F11: Model Parameters
F12: Minimum Payment PMT
F13: Remaining Loan Balance CUMPRINC
F14: No of Periods to Pay Loan NPER
F15: Error Checks

Sheet Style Guide
A1: =IF(ISERROR(RIGHT(CELL("filename",A1),LEN(CELL("filename",A1))-FIND("]",CELL("filename",A1)))), "", RIGHT(CELL("filename",A1),LEN(CELL("filename",A1))-FIND("]",CELL("filename",A1)))) -> Style Guide
A2: =Model_Name -> SP Debt to Repay Examples.xlsm
A3: Navigator
E4: Error Checks: | I4: =Overall_Error_Check -> 0
B6: =MAX($B$5:$B5)+1 -> 1 | C6: Formatting of Headers / Dividers
C8: Description | I8: Display | K8: Style Name
C10: Sheet Title | I10: =C10 -> Sheet Title | K10: Sheet Title
C11: Model Name | I11: =C11 -> Model Name | K11: Model Name
C13: Header 1 | I13: =C13 -> Header 1 | K13: Header 1
C14: Header 2 | I14: =C14 -> Header 2 | K14: Header 2
C15: Header 3 | I15: =C15 -> Header 3 | K15: Header 3
C16: Header 4 | I16: =C16 -> Header 4 | K16: Header 4
C18: Notes | I18: =C18 -> Notes | K18: Notes
C20: Table Heading | I20: =C20 -> Table Heading | K20: Table Heading
B23: =MAX($B$5:$B22)+1 -> 2 | C23: Individual Cell Styles
C25: Description | I25: Display | K25: Style Name
C27: Assumption | I27: Assumption | K27: =C27 -> Assumption
C29: Constraint | I29: =C29 -> Constraint | K29: =C29 -> Constraint
C31: Empty | K31: =C31 -> Empty
C33: Error Check | I33: 0 | K33: =C33 -> Error Check
C35: Hyperlink | I35: Hyperlink | K35: =C35 -> Hyperlink
C37: Internal Reference | I37: ='Error Checks'!E12 -> Not used | K37: =C37 -> Internal Reference
C39: Line Calculation | I39: 77 | K39: Line Calc
C41: Line Total | I41: =I39 -> 77 | K41: =C41 -> Line Total
C43: Parameter | I43: 365 | K43: =C43 -> Parameter
C45: Range Name Description | I45: Not_Named | K45: =C45 -> Range Name Description
C47: Row Reference | I47: =ROW(C47) -> 47 | K47: Row Ref
C49: Row Summary | I49: =I41 -> 77 | K49: =C49 -> Row Summary
C51: Units | I51: A$ | K51: =C51 -> Units
C53: WIP | K53: =C53 -> WIP
B56: =MAX($B$5:$B55)+1 -> 3 | C56: Numerical Styles
C58: Description | I58: Display | K58: Style Name
C60: Comma | I60: 123456.789 | K60: =C60 -> Comma
C62: Comma [0] | I62: -123456.789 | K62: Comma [0]
C64: Currency | I64: 123456.789 | K64: Currency
C66: Currency [0] | I66: 123456.789 | K66: Currency [0]
C68: Date | I68: =TODAY() -> 2017-11-25 | K68: =C68 -> Date
C70: Date Heading | I70: =TODAY() -> 2017-11-25 | K70: =C70 -> Date Heading
C72: Numbers 0 | I72: -123456.789 | K72: =C72 -> Numbers 0
C74: Percent | I74: 0.5 | K74: =C74 -> Percent

Sheet Model Parameters
A1: =IF(ISERROR(RIGHT(CELL("filename",A1),LEN(CELL("filename",A1))-FIND("]",CELL("filename",A1)))), "", RIGHT(CELL("filename",A1),LEN(CELL("filename",A1))-FIND("]",CELL("filename",A1)))) -> Model Parameters
A2: =Model_Name -> SP Debt to Repay Examples.xlsm
A3: Navigator
E4: Error Checks: | I4: =Overall_Error_Check -> 0
B6: =MAX($B$5:$B5)+1 -> 1 | C6: General
C8: Key Inputs
E10: General
E11: Model Name | G11: =IF(ISERROR(OR(FIND("[",CELL("filename",A1)),FIND("]",CELL("filename",A1)))),"",MID(CELL("filename",A1),FIND("[",CELL("filename",A1))+1,FIND("]",CELL("filename",A1))-FIND("[",CELL("filename",A1))-1)) -> SP Debt to Repay Examples.xlsm
E12: Client Name | G12: SumProduct Pty Limited
B15: =MAX($B$5:$B14)+1 -> 2 | C15: General Range Names
C17: Technical Assumptions
E19: Days in Year | G19: 365
E20: Months in Month | G20: 1
E21: Months in Quarter | G21: 3
E22: Months in Half Yr | G22: 6
E23: Months in Year | G23: 12
E24: Quarters in Year | G24: 4
E26: Rounding Accuracy | G26: 5
E28: Very Large Number | G28: 1e+99
E29: Very Small Number | G29: 1e-08
E31: Thousand | G31: 1000

Sheet Minimum Payment PMT
A1: =IF(ISERROR(RIGHT(CELL("filename",A1),LEN(CELL("filename",A1))-FIND("]",CELL("filename",A1)))), "", RIGHT(CELL("filename",A1),LEN(CELL("filename",A1))-FIND("]",CELL("filename",A1)))) -> Minimum Payment PMT
A2: =Model_Name -> SP Debt to Repay Examples.xlsm
A3: Navigator
E4: Error Checks: | I4: =Overall_Error_Check -> 0
B6: =MAX($B$5:$B5)+1 -> 1 | C6: =A1 -> Minimum Payment PMT
C8: Payments in Arrears
D10: Scenario
F12: Imagine you borrow an amount A to be repaid over N periods with a periodic interest rate of i.
F13: Assuming payments are made at the end of each period, the amount to be paid each period will be P:
G15: P = Ai / (1 - (1 + i)^-N)
E18: Illustration
F20: This formula shows how it works:
G22: Amount (A) | K22: 300000
G23: Repayment Period (Years) | K23: 25
G24: Repayment Period (Months) (N) | K24: =K23*Months_in_Year -> 300
G25: Annual Interest Rate (%) | K25: 0.06
G26: Monthly Interest Rate (%) (i) | K26: =K25/Months_in_Year -> 0.005
G28: Monthly Payment | K28: =(K22*K26)/(1-((1+K26)^-K24)) -> 1932.904204
G30: PMT Calculation | K30: =-PMT(K26,K24,K22) -> 1932.904204
C33: Payments in Advance
D35: Scenario
F37: Again, assume you borrow an amount A to be repaid over N periods with a periodic interest rate of i.
F38: With payments made at the beginning of each period, the amount to be paid each period will be P:
G40: P = Ai / ((1 - (1 + i)^-N) * (1 + i))
E43: Illustration
F45: This formula shows how it works:
G47: Amount (A) | K47: 300000
G48: Repayment Period (Years) | K48: 25
G49: Repayment Period (Months) (N) | K49: =K48*Months_in_Year -> 300
G50: Annual Interest Rate (%) | K50: 0.06
G51: Monthly Interest Rate (%) (i) | K51: =K50/Months_in_Year -> 0.005
G53: Monthly Payment | K53: =(K47*K51)/((1-((1+K51)^-K49))*(1+K51)) -> 1923.287766
G55: PMT Calculation | K55: =-PMT(K51,K49,K47,,1) -> 1923.287766

Sheet Remaining Loan Balance CUMPRINC
A1: =IF(ISERROR(RIGHT(CELL("filename",A1),LEN(CELL("filename",A1))-FIND("]",CELL("filename",A1)))), "", RIGHT(CELL("filename",A1),LEN(CELL("filename",A1))-FIND("]",CELL("filename",A1)))) -> Remaining Loan Balance CUMPRINC
A2: =Model_Name -> SP Debt to Repay Examples.xlsm
A3: Navigator
E4: Error Checks: | I4: =Overall_Error_Check -> 0
B6: =MAX($B$5:$B5)+1 -> 1 | C6: =A1 -> Remaining Loan Balance CUMPRINC
C8: Payments in Arrears
D10: Scenario
F12: Imagine you borrow an amount A to be repaid over N periods with a periodic interest rate of i.
F13: Assuming payments are made at the end of each period, the remaining loan balance B after n periods (n <= N) will be:
G15: B = A (1 + i)^n - ((P / i) [(1 + i)^n - 1])
E18: Illustration
F20: This formula shows how to calculate it:
G22: Amount (A) | K22: 300000
G23: Repayment Period (Years) | K23: 25
G24: Repayment Period (Months) (N) | K24: =K23*Months_in_Year -> 300
G25: Month Number (n <= N) | K25: 36
G26: Annual Interest Rate (%) | K26: 0.06
G27: Monthly Interest Rate (%) (i) | K27: =K26/Months_in_Year -> 0.005
G28: Monthly Payment (P) | K28: =(K22*K27)/(1-(1+K27)^-K24) -> 1932.904204 | L28: ="using "&'Minimum Payment PMT'!$G$15 -> using P = Ai / (1 - (1 + i)^-N)
G30: Outstanding Balance (B) | K30: =K22*((1+K27)^K25)-((K28/K27)*(((1+K27)^K25)-1)) -> 282971.2348
G32: CUMPRINC Calculation | K32: =K22+CUMPRINC(K27,K24,K22,one,K25,0) -> 282971.2348
G34: CUMPRINC actually calculates the principal paid off between periods x and y, where y >= x.
G35: This is why the value '1' has been hardcoded into the formula above.
G36: Therefore, the balance remaining is the original amount less the principal paid off.
G38: Total Interest Paid so far | K38: =K25*K28-(K22-K32) -> 52555.78613
C41: Payments in Advance
D43: Scenario
F45: Again, you borrow an amount A to be repaid over N periods with a periodic interest rate of i.
F46: Assuming payments are made at the beginning of each period, the remaining loan balance B after n periods (n <= N) will be:
G48: B = (A - P)(1 + i)^n - ((P / i) [(1 + i)^n - (1 + i)])
E51: Illustration
F53: This formula shows how to calculate it:
G55: Amount (A) | K55: 300000
G56: Repayment Period (Years) | K56: 25
G57: Repayment Period (Months) (N) | K57: =K56*Months_in_Year -> 300
G58: Month Number (n <= N) | K58: 36
G59: Annual Interest Rate (%) | K59: 0.06
G60: Monthly Interest Rate (%) (i) | K60: =K59/Months_in_Year -> 0.005
G61: Monthly Payment (P) | K61: =(K55*K60)/((1-(1+K60)^-K57)*(1+K60)) -> 1923.287766 | L61: ="using "&'Minimum Payment PMT'!$G$40 -> using P = Ai / ((1 - (1 + i)^-N) * (1 + i))
G63: Outstanding Balance (B) | K63: =(K55-K61)*((1+K60)^K58)-((K61/K60)*(((1+K60)^K58)-(1+K60))) -> 282971.2348 | L63: note the balance will always be the same whether paid in arrears or in advance
G65: CUMPRINC Calculation | K65: =(K55+CUMPRINC(K60,K57,K55,one,K58,1))*(1+K60) -> 282971.2348 | L65: this is multiplied by (1 + i) as interest accrues by the end of the period (the final payment is made at the beginning of the period)
G67: CUMPRINC actually calculates the principal paid off between periods x and y, where y >= x.
G68: This is why the value '1' has been hardcoded into the formula above.
G69: Therefore, the balance remaining is the original amount less the principal paid off PLUS the interest in the final period (payment is made at the start of the period).
G71: Total Interest Paid so far | K71: =K58*K61-(K55-K65) -> 52209.59434

Sheet No of Periods to Pay Loan NPER
A1: =IF(ISERROR(RIGHT(CELL("filename",A1),LEN(CELL("filename",A1))-FIND("]",CELL("filename",A1)))), "", RIGHT(CELL("filename",A1),LEN(CELL("filename",A1))-FIND("]",CELL("filename",A1)))) -> No of Periods to Pay Loan NPER
A2: =Model_Name -> SP Debt to Repay Examples.xlsm
A3: Navigator
E4: Error Checks: | I4: =Overall_Error_Check -> 0
B6: =MAX($B$5:$B5)+1 -> 1 | C6: =A1 -> No of Periods to Pay Loan NPER
C8: Payments in Arrears
D10: Scenario
F12: Imagine you borrow an amount A with an associated periodic interest rate of i.
F13: How many periods will it take to pay off the loan if you pay an amount P at the end of each period?
G15: N = -log(1 - (Ai / P)) / log (1 + i) | L15: Note: it does not matter which logarithmic base you use as long as it is the same for the numerator and the denominator
E18: Illustration
F20: This formula shows how it works:
G22: Amount (A) | K22: 300000
G23: Annual Interest Rate (%) | K23: 0.06
G24: Monthly Interest Rate (%) (i) | K24: =K23/Months_in_Year -> 0.005
G25: Monthly Payment (P) | K25: 5000
G27: Number of Months (N) | K27: =-LOG(1-(K22*K24/K25))/LOG(1+K24) -> 71.51317802 | L27: This figure could be rounded up though if not an integer
G29: NPER Calculation | K29: =NPER(K24,-K25,K22) -> 71.51317802
C32: Payments in Advance
D34: Scenario
F36: Again, you borrow an amount A with an associated periodic interest rate of i.
F37: How many periods will it take to pay off the loan if you pay an amount P at the beginning of each period?
G39: N = 1 - log(1 - ((A - P) i / P)) / log (1 + i) | L39: Note: it does not matter which logarithmic base you use as long as it is the same for the numerator and the denominator
E42: Illustration
F44: This formula shows how it works:
G46: Amount (A) | K46: 300000
G47: Annual Interest Rate (%) | K47: 0.06
G48: Monthly Interest Rate (%) (i) | K48: =K47/Months_in_Year -> 0.005
G49: Monthly Payment (P) | K49: 5000
G51: Number of Months (N) | K51: =1-LOG(1-((K46-K49)*K48/K49))/LOG(1+K48) -> 71.08612869 | L51: This figure could be rounded up though if not an integer
G53: NPER Calculation | K53: =NPER(K48,-K49,K46,,1) -> 71.08612869

Sheet Error Checks
A1: =IF(ISERROR(RIGHT(CELL("filename",A1),LEN(CELL("filename",A1))-FIND("]",CELL("filename",A1)))), "", RIGHT(CELL("filename",A1),LEN(CELL("filename",A1))-FIND("]",CELL("filename",A1)))) -> Error Checks
A2: =Model_Name -> SP Debt to Repay Examples.xlsm
A3: Navigator
B4: Error Checks: | F4: =Overall_Error_Check -> 0
B6: =MAX($B$5:$B5)+1 -> 1 | C6: Error Checks
C8: Summary of Errors
D10: Assumptions
E12: Not used | I12: 0
E17: =C8 -> Summary of Errors | I17: =MIN(1,SUM(I11:I15)) -> 0
